fUSD/lending_fUSD_20240105
["ID","MTS","AMOUNT","RATE_DAILY","PERIOD"]
[310258191,1704424305830,-313.55822968,0.00037708,10]
[310258192,1704424305839,-313.55822968,0.00037708,10]
[310258193,1704424305849,-313.55822968,0.00037708,10]
[310258194,1704424305858,-313.55822968,0.00037708,10]
[310258195,1704424305867,-313.55822968,0.00037708,10]
[310258196,1704424305877,-313.55822968,0.00037708,10]
[310258197,1704424305886,-313.55822968,0.00037708,10]
[310258198,1704424305896,-313.55822968,0.00037708,10]
[310258199,1704424305906,-313.55822968,0.00037708,10]
[310258200,1704424305916,-313.55822968,0.00037708,10]
[310258201,1704424305925,-313.55822968,0.00037708,10]
[310258202,1704424305934,-313.55822968,0.00037708,10]
[310258203,1704424305943,-313.55822968,0.00037708,10]
[310258204,1704424305952,-313.55822968,0.00037708,10]
[310258205,1704424305961,-313.55822968,0.00037708,10]
[310258206,1704424305971,-313.55822968,0.00037708,10]
[310258207,1704424305980,-313.55822968,0.00037708,10]
[310258208,1704424305989,-313.55822968,0.00037708,10]
[310258209,1704424305999,-313.55822968,0.00037708,10]
[310258210,1704424306008,-313.55,0.00037708,10]
[310258211,1704424306017,-1254.23291873,0.00037708,10]
[310258212,1704424306026,-1254.23291873,0.00037708,10]
[310258213,1704424306080,-1254.23291873,0.00037708,10]
[310258214,1704424306089,-1254.23291873,0.00037708,10]
[310258215,1704424306098,-1254.23291873,0.00037708,10]
[310258216,1704424306107,-1254.23291873,0.00037708,10]
[310258217,1704424306117,-1254.23291873,0.00037708,10]
[310258218,1704424306127,-1254.23291873,0.00037708,10]
[310258219,1704424306136,-1254.23291873,0.00037708,10]
[310258220,1704424306146,-1254.23291873,0.00037708,10]
[310258221,1704424306155,-1254.23291873,0.00037708,10]
[310258222,1704424306164,-1254.23291873,0.00037708,10]
[310258223,1704424306173,-1254.23291873,0.00037708,10]
[310258224,1704424306182,-1254.23291873,0.00037708,10]
[310258225,1704424306192,-1254.23291873,0.00037708,10]
[310258226,1704424306201,-1254.23291873,0.00037708,10]
[310258227,1704424306210,-1254.23291873,0.00037708,10]
[310258228,1704424306219,-553.35660762,0.00037708,10]
[310258229,1704424306229,-553.35660762,0.00037708,10]
[310258230,1704424306239,-553.35660762,0.00037708,10]
[310258231,1704424306248,-553.35660762,0.00037708,10]
[310258232,1704424306257,-553.35660762,0.00037708,10]
[310258233,1704424306266,-553.35660762,0.00037708,10]
[310258234,1704424306275,-553.35660762,0.00037708,10]
[310258235,1704424306284,-553.35660762,0.00037708,10]
[310258236,1704424306294,-553.35660762,0.00037708,10]
[310258237,1704424306303,-553.35660762,0.00037708,10]
[310258238,1704424306314,-553.35660762,0.00037708,10]
[310258239,1704424306324,-553.35660762,0.00037708,10]
[310258240,1704424306333,-553.35660762,0.00037708,10]
[310258241,1704424306343,-553.35660762,0.00037708,10]
[310258242,1704424306353,-553.35660762,0.00037708,10]
[310258243,1704424306363,-553.35660762,0.00037708,10]
[310258244,1704424306373,-553.35660762,0.00037708,10]
[310258245,1704424306383,-553.35660762,0.00037708,10]
[310258246,1704424306394,-553.35660762,0.00037708,10]
[310258247,1704424306405,-553.35,0.00037708,10]
[310258248,1704424306416,-2213.42643047,0.00037708,10]
[310258249,1704424306426,-2213.42643047,0.00037708,10]
[310258250,1704424306435,-2213.42643047,0.00037708,10]
[310258251,1704424306445,-2213.42643047,0.00037708,10]
[310258252,1704424306454,-2213.42643047,0.00037708,10]
[310258253,1704424306464,-2213.42643047,0.00037708,10]
[310258254,1704424306473,-2213.42643047,0.00037708,10]
[310258255,1704424306484,-2213.42643047,0.00037708,10]
[310258256,1704424306494,-2213.42643047,0.00037708,10]
[310258257,1704424306503,-2213.42643047,0.00037708,10]
[310258258,1704424306512,-2213.42643047,0.00037708,10]
[310258259,1704424306521,-2213.42643047,0.00037708,10]
[310258260,1704424306531,-2213.42643047,0.00037708,10]
[310258261,1704424306541,-2213.42643047,0.00037708,10]
[310258262,1704424306551,-2213.42643047,0.00037708,10]
[310258263,1704424306561,-2213.42643047,0.00037708,10]
[310258264,1704424306571,-2213.42643047,0.00037708,10]
[310258265,1704424306581,-485.34442282,0.00037708,10]
[310258266,1704424306591,-485.34442282,0.00037708,10]
[310258267,1704424306600,-485.34442282,0.00037708,10]
[310258268,1704424306609,-485.34442282,0.00037708,10]
[310258269,1704424306619,-485.34442282,0.00037708,10]
[310258270,1704424306629,-485.34442282,0.00037708,10]
[310258271,1704424306638,-485.34442282,0.00037708,10]
[310258272,1704424306648,-485.34442282,0.00037708,10]
[310258273,1704424306657,-485.34442282,0.00037708,10]
[310258274,1704424306666,-485.34442282,0.00037708,10]
[310258275,1704424306676,-485.34442282,0.00037708,10]
[310258276,1704424306685,-485.34442282,0.00037708,10]
[310258277,1704424306694,-485.34442282,0.00037708,10]
[310258278,1704424306703,-485.34442282,0.00037708,10]
[310258279,1704424306712,-485.34442282,0.00037708,10]
[310258280,1704424306721,-485.34442282,0.00037708,10]
[310258281,1704424306730,-485.34442282,0.00037708,10]
[310258282,1704424306739,-485.34442282,0.00037708,10]
[310258283,1704424306748,-485.34442282,0.00037708,10]
[310258284,1704424306757,-485.34,0.00037708,10]
[310258285,1704424306766,-1941.37769127,0.00037708,10]
[310258286,1704424306776,-1941.37769127,0.00037708,10]
[310258287,1704424306787,-1941.37769127,0.00037708,10]
[310258288,1704424306797,-1941.37769127,0.00037708,10]
[310258289,1704424306806,-1941.37769127,0.00037708,10]
[310258290,1704424306815,-1941.37769127,0.00037708,10]
[310258291,1704424306824,-1941.37769127,0.00037708,10]
[310258292,1704424306833,-1941.37769127,0.00037708,10]
[310258293,1704424306843,-1941.37769127,0.00037708,10]
[310258294,1704424306852,-1941.37769127,0.00037708,10]
[310258295,1704424306862,-1941.37769127,0.00037708,10]
[310258296,1704424306875,-1941.37769127,0.00037708,10]
[310258297,1704424306886,-1941.37769127,0.00037708,10]
[310258298,1704424306896,-1941.37769127,0.00037708,10]
[310258299,1704424306905,-1941.37769127,0.00037708,10]
[310258300,1704424306915,-1941.37769127,0.00037708,10]
[310258301,1704424306925,-1941.37769127,0.00037708,10]
[310258302,1704424306936,-401.45854326,0.00037708,2]
[310258303,1704424306950,-942.43204136,0.00037718,11]
[310258304,1704424306960,-154.87,0.00037741,2]
[310258305,1704424306970,-3353.0,0.00037754,20]
[310258306,1704424306980,-842.0,0.00037754,20]
[310258307,1704424306990,-370.0,0.00037754,20]
[310258308,1704424307000,-1000.0,0.00037754,2]
[310258309,1704424307010,-8248.29,0.000378,7]
[310258310,1704424307021,-13965.33,0.000378,7]
[310258311,1704424307030,-373.253428,0.000378,2]
[310258312,1704424307041,-180.69,0.00037808,2]
[310258313,1704424307051,-500.0,0.00037808,3]
[310258314,1704424307060,-500.0,0.00037808,3]
[310258315,1704424307070,-193.93343327,0.00037808,3]
[310258316,1704424307079,-760.75,0.00037808,3]
[310258317,1704424307089,-500.0,0.00037808,3]
[310258318,1704424307098,-560.59043645,0.00037808,3]
[310258319,1704424307107,-500.0,0.00037808,3]
[310258320,1704424307117,-583.53,0.00037808,3]
[310258321,1704424307130,-500.0,0.00037808,3]
[310258322,1704424307140,-500.0,0.00037808,3]
[310258323,1704424307149,-500.0,0.00037808,3]
[310258324,1704424307159,-500.0,0.00037808,3]
[310258325,1704424307169,-500.0,0.00037808,3]
[310258326,1704424307178,-570.11565726,0.00037808,3]
[310258327,1704424307187,-669.12,0.00037808,3]
[310258328,1704424307197,-500.0,0.00037808,3]
[310258329,1704424307206,-500.0,0.00037808,3]
[310258330,1704424307216,-500.0,0.00037808,3]
[310258331,1704424307225,-500.0,0.00037808,3]
[310258332,1704424307234,-530.89,0.00037808,3]
[310258333,1704424307244,-500.0,0.00037808,3]
[310258334,1704424307253,-500.0,0.00037808,3]
[310258335,1704424307263,-500.0,0.00037808,3]
[310258336,1704424307272,-500.0,0.00037808,3]
[310258337,1704424307281,-500.0,0.00037808,3]
[310258338,1704424307290,-500.0,0.00037808,3]
[310258339,1704424307300,-500.0,0.00037808,3]
[310258340,1704424307309,-500.0,0.00037808,3]
[310258341,1704424307318,-500.0,0.00037808,3]
[310258342,1704424307327,-475.65376534,0.00037808,3]
[310258343,1704424307337,-500.0,0.00037808,3]
[310258344,1704424307346,-500.0,0.00037808,3]
[310258345,1704424307356,-500.0,0.00037808,3]
[310258346,1704424307366,-500.0,0.00037808,3]
[310258347,1704424307378,-524.10755663,0.00037808,3]
[310258348,1704424307387,-500.0,0.00037808,3]
[310258349,1704424307396,-500.0,0.00037808,3]
[310258350,1704424307405,-500.0,0.00037808,3]
[310258351,1704424307414,-500.0,0.00037808,3]
[310258352,1704424307424,-500.0,0.00037808,3]
[310258353,1704424307433,-500.0,0.00037808,3]
[310258354,1704424307442,-500.0,0.00037808,3]
[310258355,1704424307451,-500.0,0.00037808,3]
[310258356,1704424307461,-526.33934513,0.00037808,3]
[310258357,1704424307471,-635.71630795,0.00037808,3]
[310258358,1704424307480,-500.0,0.00037808,3]
[310258359,1704424307490,-500.0,0.00037808,3]
[310258360,1704424307499,-517.4943774,0.00037808,3]
[310258361,1704424307509,-500.0,0.00037808,3]
[310258362,1704424307518,-277.49191948,0.00037808,3]
[310258363,1704424307528,-500.0,0.00037808,3]
[310258364,1704424307537,-500.0,0.00037808,3]
[310258365,1704424307547,-500.0,0.00037808,3]
[310258366,1704424307556,-500.0,0.00037808,3]
[310258367,1704424307565,-500.0,0.00037808,3]
[310258368,1704424307574,-500.0,0.00037808,3]
[310258369,1704424307583,-395.59267549,0.00037808,3]
[310258370,1704424307593,-500.0,0.00037808,3]
[310258371,1704424307602,-500.0,0.00037808,3]
[310258372,1704424307611,-500.0,0.00037808,3]
[310258373,1704424307621,-954.7,0.00037808,3]
[310258374,1704424307631,-500.0,0.00037808,3]
[310258375,1704424307640,-500.0,0.00037808,3]
[310258376,1704424307650,-500.0,0.00037808,3]
[310258377,1704424307659,-500.0,0.00037808,3]
[310258378,1704424307668,-449.6,0.00037808,3]
[310258379,1704424307677,-500.0,0.00037808,3]
[310258380,1704424307686,-500.0,0.00037808,3]
[310258381,1704424307695,-376.44683054,0.00037808,3]
[310258382,1704424307706,-500.0,0.00037808,3]
[310258383,1704424307717,-500.0,0.00037808,3]
[310258384,1704424307728,-608.08,0.00037808,3]
[310258385,1704424307737,-500.0,0.00037808,3]
[310258386,1704424307747,-500.0,0.00037808,3]
[310258387,1704424307756,-323.7283184,0.00037808,3]
[310258388,1704424307766,-500.0,0.00037808,3]
[310258389,1704424307775,-293.66599094,0.00037808,3]
[310258390,1704424307785,-500.0,0.00037808,3]
[310258391,1704424307794,-500.0,0.00037808,3]
[310258392,1704424307804,-500.0,0.00037808,3]
[310258393,1704424307814,-500.0,0.00037808,3]
[310258394,1704424307824,-500.0,0.00037808,3]
[310258395,1704424307833,-874.14,0.00037808,3]
[310258396,1704424307843,-500.0,0.00037808,3]
[310258397,1704424307853,-632.69150205,0.00037808,3]
[310258398,1704424307862,-500.0,0.00037808,3]
[310258399,1704424307872,-500.0,0.00037808,3]
[310258400,1704424307882,-500.0,0.00037808,3]
[310258401,1704424307892,-500.0,0.00037808,3]
[310258402,1704424307901,-179.73493575,0.00037808,3]
[310258403,1704424307911,-500.0,0.00037808,3]
[310258404,1704424307921,-500.0,0.00037808,3]
[310258405,1704424307931,-500.0,0.00037808,3]
[310258406,1704424307940,-407.06873733,0.00037808,3]
[310258407,1704424308430,-92.93126267,0.00037808,3]
[310258408,1704424308439,-500.0,0.00037808,3]
[310258409,1704424308450,-403.07761867,0.00037808,3]
[310258410,1704424308460,-482.60875096,0.00037808,3]
[310258411,1704424308470,-237.16002705,0.00037808,3]
[310258412,1704424308481,-500.0,0.00037808,3]
[310258413,1704424308491,-500.0,0.00037808,3]
[310258414,1704424308500,-610.1041691,0.00037808,3]
[310258415,1704424308510,-607.51757548,0.00037808,3]
[310258416,1704424308519,-202.18382681,0.00037808,3]
[310258417,1704424308530,-500.0,0.00037808,3]
[310258418,1704424308539,-500.0,0.00037808,3]
[310258419,1704424308551,-500.0,0.00037808,3]
[310258420,1704424308560,-500.0,0.00037808,3]
[310258421,1704424308570,-154.72348595,0.00037808,3]
[310258422,1704424308579,-500.0,0.00037808,3]
[310258423,1704424308589,-500.0,0.00037808,3]
[310258424,1704424308598,-593.83,0.00037808,3]
[310258425,1704424308608,-159.5074211,0.00037808,3]
[310258426,1704424308617,-3647.06,0.00037808,3]
[310258427,1704424308627,-500.0,0.00037808,3]
[310258428,1704424308637,-523.05,0.00037808,3]
[310258429,1704424308646,-569.6,0.00037808,3]
[310258430,1704424308655,-435.71425203,0.00037808,3]
[310258431,1704424308665,-500.0,0.00037808,3]
[310258432,1704424308675,-1578.13,0.00037808,3]
[310258433,1704424308685,-869.26,0.00037808,3]
[310258434,1704424308694,-601.34,0.00037808,3]
[310258435,1704424308703,-602.04,0.00037808,3]
[310258436,1704424308712,-500.0,0.00037808,3]
[310258437,1704424308722,-624.75332184,0.00037808,3]
[310258438,1704424308732,-500.0,0.00037808,3]
[310258439,1704424308741,-559.1,0.00037808,3]
[310258440,1704424308751,-500.0,0.00037808,3]
[310258441,1704424308761,-500.0,0.00037808,3]
[310258442,1704424308770,-500.0,0.00037808,3]
[310258443,1704424308780,-500.0,0.00037808,3]
[310258444,1704424308789,-500.0,0.00037808,3]
[310258445,1704424308799,-316.04589515,0.00037808,3]
[310258446,1704424308809,-4769.97,0.00037808,3]
[310258447,1704424308819,-500.0,0.00037808,3]
[310258448,1704424308829,-565.17,0.00037808,3]
[310258449,1704424308838,-500.0,0.00037808,3]
[310258450,1704424308848,-2681.68,0.00037808,3]
[310258451,1704424308858,-3006.36,0.00037808,3]
[310258452,1704424308867,-774.17,0.00037808,3]
[310258453,1704424308878,-500.0,0.00037808,3]
[310258454,1704424308887,-500.0,0.00037808,3]
[310258455,1704424308896,-776.16,0.00037808,3]
[310258456,1704424308906,-1909.11,0.00037808,3]
[310258457,1704424308915,-1238.67,0.00037808,3]
[310258458,1704424308925,-529.17,0.00037808,3]
[310258459,1704424308935,-3090.15,0.00037808,3]
[310258460,1704424308948,-500.0,0.00037808,3]
[310258461,1704424308957,-5012.71,0.00037808,3]
[310258462,1704424308967,-500.0,0.00037808,3]
[310258463,1704424308977,-1857.63,0.00037808,3]
[310258464,1704424308988,-4528.66,0.00037808,3]
[310258465,1704424308997,-704.83,0.00037808,3]
[310258466,1704424309007,-1953.12,0.00037808,3]
[310258467,1704424309017,-2812.81,0.00037808,3]
[310258468,1704424309027,-500.0,0.00037808,3]
[310258469,1704424309037,-778.9,0.00037808,3]
[310258470,1704424309046,-1569.53,0.00037808,3]
[310258471,1704424309057,-494.35666325,0.00037808,3]
[310258472,1704424309067,-1388.55,0.00037808,3]
[310258473,1704424309076,-500.0,0.00037808,3]
[310258474,1704424309086,-500.0,0.00037808,3]
[310258475,1704424309095,-500.0,0.00037808,3]
[310258476,1704424309105,-971.61,0.00037808,3]
[310258477,1704424309115,-2118.07,0.00037808,3]
[310258478,1704424309126,-1026.23,0.00037808,3]
[310258479,1704424309136,-500.0,0.00037808,3]
[310258480,1704424309147,-528.77,0.00037808,3]
[310258481,1704424309158,-747.51,0.00037808,3]
[310258482,1704424309167,-238.85,0.00037808,3]
[310258483,1704424309176,-500.0,0.00037808,3]
[310258484,1704424309186,-500.0,0.00037808,3]
[310258485,1704424309195,-1256.48,0.00037808,3]
[310258486,1704424309204,-1231.35,0.00037808,3]
[310258487,1704424309214,-572.55692129,0.00037808,3]
[310258488,1704424309223,-2582.67,0.00037808,3]
[310258489,1704424309233,-1321.69,0.00037808,3]
[310258490,1704424309244,-985.31,0.00037808,3]
[310258491,1704424309254,-500.0,0.00037808,3]
[310258492,1704424309265,-804.83,0.00037808,3]
[310258493,1704424309275,-672.09,0.00037808,3]
[310258494,1704424309285,-500.0,0.00037808,3]
[310258495,1704424309294,-500.0,0.00037808,3]
[310258496,1704424309304,-1836.89,0.00037808,3]
[310258497,1704424309314,-500.0,0.00037808,3]
[310258498,1704424309323,-1010.49,0.00037808,3]
[310258499,1704424309333,-500.0,0.00037808,3]
[310258500,1704424309343,-762.87,0.00037808,3]
[310258501,1704424309355,-500.0,0.00037808,3]
[310258502,1704424309364,-786.79,0.00037808,3]
[310258503,1704424309375,-5862.64,0.00037808,3]
[310258504,1704424309385,-500.0,0.00037808,3]
[310258505,1704424309395,-934.12,0.00037808,3]
[310258506,1704424309405,-1785.52,0.00037808,3]
[310258507,1704424309414,-500.0,0.00037808,3]
[310258508,1704424309424,-912.64,0.00037808,3]
[310258509,1704424309434,-808.85,0.00037808,3]
[310258510,1704424309443,-882.36,0.00037808,3]
[310258511,1704424309453,-1259.24,0.00037808,3]
[310258512,1704424309464,-13869.62,0.00037808,3]
[310258513,1704424309475,-500.0,0.00037808,3]
[310258514,1704424309484,-500.0,0.00037808,3]
[310258515,1704424309494,-3101.88,0.00037808,3]
[310258516,1704424309504,-1091.42,0.00037808,3]
[310258517,1704424309514,-785.92,0.00037808,3]
[310258518,1704424309524,-586.04,0.00037808,3]
[310258519,1704424309534,-343.69759609,0.00037808,3]
[310258520,1704424309544,-500.0,0.00037808,3]
[310258521,1704424309553,-1268.16,0.00037808,3]
[310258522,1704424309563,-1189.46,0.00037808,3]
[310258523,1704424309573,-606.27,0.00037808,3]
[310258524,1704424309583,-593.38,0.00037808,3]
[310258525,1704424309593,-1481.99,0.00037808,3]
[310258526,1704424309604,-500.0,0.00037808,3]
[310258527,1704424309614,-500.0,0.00037808,3]
[310258528,1704424309625,-1085.76,0.00037808,3]
[310258529,1704424309635,-1106.51,0.00037808,3]
[310258530,1704424309644,-500.0,0.00037808,3]
[310258531,1704424309654,-1351.81,0.00037808,3]
[310258532,1704424309665,-500.0,0.00037808,3]
[310258533,1704424309674,-500.0,0.00037808,3]
[310258534,1704424309684,-545.65,0.00037808,3]
[310258535,1704424309694,-765.09,0.00037808,3]
[310258536,1704424309705,-537.24,0.00037808,3]
[310258537,1704424309715,-1151.66,0.00037808,3]
[310258538,1704424309725,-500.0,0.00037808,3]
[310258539,1704424309736,-779.5,0.00037808,3]
[310258540,1704424309747,-1306.66,0.00037808,3]
[310258541,1704424309756,-572.88,0.00037808,3]
[310258542,1704424309766,-500.0,0.00037808,3]
[310258543,1704424309775,-500.0,0.00037808,3]
[310258544,1704424309785,-500.0,0.00037808,3]
[310258545,1704424309795,-500.0,0.00037808,3]
[310258546,1704424309807,-500.0,0.00037808,3]
[310258547,1704424309817,-8188.31,0.00037808,3]
[310258548,1704424309827,-1063.95,0.00037808,3]
[310258549,1704424309837,-798.53,0.00037808,3]
[310258550,1704424309847,-528.36,0.00037808,3]
[310258551,1704424309857,-500.0,0.00037808,3]
[310258552,1704424309867,-920.16,0.00037808,3]
[310258553,1704424309877,-500.0,0.00037808,3]
[310258554,1704424310059,-500.0,0.00037808,3]
[310258555,1704424310069,-663.44,0.00037808,3]
[310258556,1704424310079,-1622.28,0.00037808,3]
[310258557,1704424310089,-500.0,0.00037808,3]
[310258558,1704424310099,-711.28,0.00037808,3]
[310258559,1704424310108,-500.0,0.00037808,3]
[310258560,1704424310118,-502.3,0.00037808,3]
[310258561,1704424310127,-2080.27,0.00037808,3]
[310258562,1704424310137,-835.35,0.00037808,3]
[310258563,1704424310147,-500.0,0.00037808,3]
[310258564,1704424310156,-500.0,0.00037808,3]
[310258565,1704424310166,-500.0,0.00037808,3]
[310258566,1704424310175,-2415.78,0.00037808,3]
[310258567,1704424310185,-558.41,0.00037808,3]
[310258568,1704424310194,-500.0,0.00037808,3]
[310258569,1704424310204,-500.0,0.00037808,3]
[310258570,1704424310213,-500.0,0.00037808,3]
[310258571,1704424310222,-500.0,0.00037808,3]
[310258572,1704424310231,-542.19,0.00037808,3]
[310258573,1704424310241,-500.0,0.00037808,3]
[310258574,1704424310251,-500.0,0.00037808,3]
[310258575,1704424310259,-499.69038485,0.00037808,3]
[310258576,1704424310269,-1511.27,0.00037808,3]
[310258577,1704424310278,-500.0,0.00037808,3]
[310258578,1704424310287,-4392.23,0.00037808,3]
[310258579,1704424310297,-1318.19,0.00037808,3]
[310258580,1704424310306,-500.0,0.00037808,3]
[310258581,1704424310315,-401.45854323,0.00037832,2]
[310258582,1704424310325,-489.994873,0.00037862,2]
[310258583,1704424310334,-157.40105,0.00037898,2]
[310258584,1704424310344,-163.26634129,0.00037899,2]
[310258585,1704424310353,-150.0,0.00037899,2]
[310258586,1704424310363,-500355.97392635,0.000379,2]
[310258587,1704424310379,-152058.00963665,0.000379,2]
[310258588,1704424310389,-1308.6415487,0.00037926,10]
[310258589,1704424310399,-387.19141102,0.00037926,10]
[310258590,1704424310408,-1254.23291873,0.00037926,10]
[310258591,1704424310418,-2213.42643047,0.00037926,10]
[310258592,1704424310428,-1941.37769127,0.00037926,10]
[310258593,1704424310437,-167.0,0.00037934,2]
[310258594,1704424310446,-401.45854323,0.00037956,2]
[310258595,1704424310456,-4133.0,0.0003799,2]
[310258596,1704424310466,-153.81315469,0.00037995,2]
[310258597,1704424310476,-1490.6423875,0.00038,2]
[310258598,1704424310486,-20351.9982762,0.00038,2]
[310258599,1704424310495,-454.24809273,0.00038,4]
[310258600,1704424310504,-157.0,0.00038,2]
[310258601,1704424310513,-171.0,0.00038,2]
[310258602,1704424310522,-163.0,0.00038,2]
[310258603,1704424310532,-1000.0,0.00038004,2]
[310258604,1704424310541,-3000.0,0.0003802,2]
[310258605,1704424310551,-546.218,0.00038028,2]
[310258606,1704424310561,-401.45854323,0.0003808,2]
[310258607,1704424310570,-151.0,0.00038082,7]
[310258608,1704424310580,-151.0,0.00038082,7]
[310258609,1704424310589,-180.69,0.00038082,2]
[310258610,1704424310598,-537.52781309,0.00038082,3]
[310258611,1704424310608,-500.0,0.00038082,3]
[310258612,1704424310617,-760.75,0.00038082,3]
[310258613,1704424310627,-500.0,0.00038082,3]
[310258614,1704424310639,-500.0,0.00038082,3]
[310258615,1704424310649,-583.53,0.00038082,3]
[310258616,1704424310658,-500.0,0.00038082,3]
[310258617,1704424310667,-500.0,0.00038082,3]
[310258618,1704424310676,-500.0,0.00038082,3]
[310258619,1704424310685,-484.36184537,0.00038082,3]
[310258620,1704424310695,-500.0,0.00038082,3]
[310258621,1704424310705,-669.12,0.00038082,3]
[310258622,1704424310714,-500.0,0.00038082,3]
[310258623,1704424310723,-500.0,0.00038082,3]
[310258624,1704424310732,-500.0,0.00038082,3]
[310258625,1704424310742,-500.0,0.00038082,3]
[310258626,1704424310752,-530.89,0.00038082,3]
[310258627,1704424310761,-500.0,0.00038082,3]
[310258628,1704424310770,-500.0,0.00038082,3]
[310258629,1704424310779,-500.0,0.00038082,3]
[310258630,1704424310789,-500.0,0.00038082,3]
[310258631,1704424310798,-500.0,0.00038082,3]
[310258632,1704424310807,-528.76924325,0.00038082,3]
[310258633,1704424310815,-500.0,0.00038082,3]
[310258634,1704424310825,-500.0,0.00038082,3]
[310258635,1704424310835,-500.0,0.00038082,3]
[310258636,1704424310844,-500.0,0.00038082,3]
[310258637,1704424310854,-615.82463542,0.00038082,3]
[310258638,1704424310863,-500.0,0.00038082,3]
[310258639,1704424310875,-464.11904582,0.00038082,3]
[310258640,1704424310884,-500.0,0.00038082,3]
[310258641,1704424310893,-500.0,0.00038082,3]
[310258642,1704424310902,-232.21491069,0.00038082,3]
[310258643,1704424310911,-151.64107581,0.00038082,3]
[310258644,1704424310920,-500.0,0.00038082,3]
[310258645,1704424310929,-500.0,0.00038082,3]
[310258646,1704424310939,-500.0,0.00038082,3]
[310258647,1704424310948,-168.41232998,0.00038082,3]
[310258648,1704424310960,-500.0,0.00038082,3]
[310258649,1704424310970,-511.93718563,0.00038082,3]
[310258650,1704424310979,-500.0,0.00038082,3]
[310258651,1704424310989,-500.0,0.00038082,3]
[310258652,1704424310997,-500.0,0.00038082,3]
[310258653,1704424311007,-500.0,0.00038082,3]
[310258654,1704424311016,-500.0,0.00038082,3]
[310258655,1704424311025,-513.95375874,0.00038082,3]
[310258656,1704424311035,-576.64833752,0.00038082,3]
[310258657,1704424311044,-500.0,0.00038082,3]
[310258658,1704424311053,-500.0,0.00038082,3]
[310258659,1704424311062,-500.0,0.00038082,3]
[310258660,1704424311072,-954.7,0.00038082,3]
[310258661,1704424311081,-500.0,0.00038082,3]
[310258662,1704424311090,-500.0,0.00038082,3]
[310258663,1704424311099,-500.0,0.00038082,3]
[310258664,1704424311109,-588.97397049,0.00038082,3]
[310258665,1704424311118,-500.0,0.00038082,3]
[310258666,1704424311127,-500.0,0.00038082,3]
[310258667,1704424311136,-500.0,0.00038082,3]
[310258668,1704424311146,-500.0,0.00038082,3]
[310258669,1704424311155,-500.0,0.00038082,3]
[310258670,1704424311164,-500.0,0.00038082,3]
[310258671,1704424311174,-500.0,0.00038082,3]
[310258672,1704424311183,-500.0,0.00038082,3]
[310258673,1704424311193,-500.0,0.00038082,3]
[310258674,1704424311203,-500.0,0.00038082,3]
[310258675,1704424311212,-388.61186461,0.00038082,3]
[310258676,1704424311221,-500.0,0.00038082,3]
[310258677,1704424311230,-874.14,0.00038082,3]
[310258678,1704424311239,-500.0,0.00038082,3]
[310258679,1704424311249,-500.0,0.00038082,3]
[310258680,1704424311258,-500.0,0.00038082,3]
[310258681,1704424311267,-546.6053658,0.00038082,3]
[310258682,1704424311277,-500.0,0.00038082,3]
[310258683,1704424311286,-500.0,0.00038082,3]
[310258684,1704424311295,-500.0,0.00038082,3]
[310258685,1704424311304,-500.0,0.00038082,3]
[310258686,1704424311313,-500.0,0.00038082,3]
[310258687,1704424311322,-552.24000402,0.00038082,3]
[310258688,1704424311332,-500.0,0.00038082,3]
[310258689,1704424311341,-431.60118367,0.00038082,3]
[310258690,1704424311352,-500.0,0.00038082,3]